fUST/lending_fUST_20251012
["ID","MTS","AMOUNT","RATE_DAILY","PERIOD"]
[390892644,1760198400066,666.0,0.00023557,2]
[390892645,1760198421031,9334.01,0.00024,2]
[390892646,1760198421059,10000.01,0.00024,2]
[390892647,1760198421086,10000.01,0.00024,2]
[390892648,1760198421115,10000.01,0.00024,2]
[390892649,1760198421145,121778.22,0.00024,2]
[390892651,1760198602802,156.93427959,0.00024357,2]
[390892652,1760198651075,1330.94680409,0.00024385,2]
[390892654,1760198812393,870.504842,0.00013699,2]
[390892655,1760198812621,870.504842,0.00020187,2]
[390892820,1760199037905,-184.88826496,0.00024447,2]
[390892821,1760199037915,-497.21,0.00024447,3]
[390892822,1760199037925,-248.61,0.00024447,3]
[390892823,1760199037936,-745.83,0.00024447,3]
[390892824,1760199037947,-1200.0,0.00024455,2]
[390892825,1760199037956,-500.0,0.00024456,2]
[390892826,1760199037966,-225.55673788,0.00024456,2]
[390892827,1760199037978,-390.18072805,0.00024456,2]
[390892828,1760199037989,-202.54177613,0.00024456,2]
[390892829,1760199038001,-478.86756322,0.00024456,2]
[390892830,1760199038011,-500.0,0.00024457,5]
[390892831,1760199038021,-4918.55794136,0.00024457,2]
[390892832,1760199038038,-2048.82555323,0.00024457,2]
[390892833,1760199038051,-698.81102016,0.00024457,2]
[390892834,1760199038063,-6040.0,0.00024457,2]
[390892844,1760199042970,-17865.26252861,0.00024457,2]
[390892858,1760199045986,-117261.6904127,0.00024457,2]
[390892860,1760199060825,150.0,0.00019321,2]
[390892861,1760199222441,370000.0,0.00024357,2]
[390892878,1760199379848,1016.0,0.0003013,60]
[390892884,1760199747279,174.0,0.00022505,120]
[390892885,1760199748774,174.0,0.0002363,120]
[390892886,1760199750017,174.0,0.00024812,120]
[390892887,1760199751282,174.0,0.00026052,120]
[390892888,1760199752516,174.0,0.00027355,120]
[390892890,1760199817377,500.0,0.00030123,60]
[390892891,1760199817616,500.0,0.00030123,60]
[390892892,1760199817871,597.19520096,0.00030123,60]
[390892893,1760199869624,1404.215113,0.00023561,2]
[390892895,1760199941884,1000.0,0.00023583,2]
[390892901,1760199998785,250.0,0.00027,120]
[390892925,1760200091822,2000.0,0.00027397,120]
[390892926,1760200092184,1790.52,0.00027397,120]
[390892929,1760200153760,2000.0,0.00027393,120]
[390892930,1760200154101,2000.0,0.00027393,120]
[390892963,1760200232024,-282.34546992,0.00024456,2]
[390892966,1760200232036,-346.91527419,0.00024456,2]
[390892968,1760200232046,-196.58497015,0.00024456,2]
[390892970,1760200232055,-170.46009319,0.00024457,2]
[390892972,1760200232064,-98.08254752,0.00024547,3]
[390892974,1760200232076,-233.95745248,0.00024547,3]
[390892976,1760200232085,-166.02,0.00024547,3]
[390892978,1760200232094,-304.27254767,0.00024547,3]
[390892980,1760200232106,-193.78745233,0.00024547,3]
[390892982,1760200232115,-300.0,0.00024554,2]
[390892984,1760200232124,-270.0,0.00024554,2]
[390892986,1760200232133,-300.0,0.00024554,2]
[390892988,1760200232143,-907.22561697,0.00024554,2]
[390892990,1760200232154,-292.77438303,0.00024554,2]
[390892992,1760200232164,-1200.0,0.00024555,2]
[390892994,1760200232173,-7973.97111207,0.00024557,2]
[390892996,1760200232186,-1245.10276993,0.00024557,2]
[390892999,1760200232197,-1014.77800709,0.00024557,2]
[390893001,1760200232210,-28803.71006451,0.00024557,2]
[390893003,1760200232222,-682.79400798,0.00024557,2]
[390893005,1760200232234,-3827.25718664,0.00024557,2]
[390893008,1760200232247,-1478.04940234,0.00024557,2]
[390893010,1760200232258,-1319.39783097,0.00024557,2]
[390893022,1760200237986,-748.52331668,0.00024557,2]
[390893023,1760200238111,-17372.71005747,0.00024557,2]
[390893036,1760200246145,-45168.81558759,0.00024557,2]
[390893039,1760200254575,162.0,0.00024435,2]
[390893043,1760200599200,366.59803,0.00023547,2]
[390893044,1760200791605,1700.0,0.00023224,2]
[390893045,1760200792308,1700.0,0.0002432,2]
[390893046,1760200796306,150.0,0.00019308,2]
[390893047,1760200796723,150.0,0.00021063,2]
[390893048,1760200860800,150.0,0.00018966,2]
[390893049,1760200861230,150.0,0.0002069,2]
[390893050,1760200884569,170.46009318,0.00024357,2]
[390893051,1760201101668,170.46009318,0.00024357,2]
[390893052,1760201145959,666.0,0.00023528,2]
[390893053,1760201149812,-4670.23630384,0.00030124,30]
[390893054,1760201149843,-5559.30791746,0.00030124,30]
[390893055,1760201149872,-481948.6628,0.00030124,30]
[390893074,1760201182421,186.85872783,0.00023641,2]
[390893075,1760201184514,746.6874764,0.00023641,2]
[390893394,1760201245735,-1000.0,0.00024457,30]
[390893395,1760201245763,-456.524,0.00024457,30]
[390893396,1760201245825,-151.0,0.00027397,30]
[390893397,1760201245852,-151.10281,0.00027397,30]
[390893398,1760201245879,-151.0,0.00027397,30]
[390893399,1760201245906,-720.0,0.0002744,30]
[390893400,1760201245934,-200.0,0.000277,120]
[390893401,1760201245961,-250.0,0.00028,120]
[390893402,1760201245990,-273.03746,0.000284,120]
[390893403,1760201246016,-174.0,0.00028723,120]
[390893404,1760201246045,-200.0,0.00028811,120]
[390893405,1760201246071,-200.0,0.00028884,120]
[390893406,1760201246098,-200.0,0.00029,120]
[390893407,1760201246125,-33823.99087506,0.00029,60]
[390893408,1760201246151,-194.7823746,0.00029,120]
[390893409,1760201246178,-151.0,0.00029,30]
[390893410,1760201246205,-194.114879,0.00029,30]
[390893411,1760201246232,-151.0,0.00029,30]
[390893412,1760201246260,-151.0,0.00029,30]
[390893413,1760201246287,-5034.4509028,0.00029544,30]
[390893414,1760201246314,-391.9198272,0.00029699,30]
[390893415,1760201246340,-391.9198272,0.00029699,30]
[390893416,1760201246365,-391.9198272,0.00029699,30]
[390893417,1760201246391,-391.9198272,0.00029699,30]
[390893418,1760201246418,-362.6057356,0.00029699,30]
[390893420,1760201246444,-200.0,0.0002977,120]
[390893421,1760201246471,-200.0,0.00029779,120]
[390893422,1760201246498,-284.87,0.0003,60]
[390893423,1760201246524,-298.08050243,0.0003,120]
[390893424,1760201246549,-200.0,0.0003,120]
[390893425,1760201246575,-2609.37557469,0.0003,30]
[390893426,1760201246601,-162.94709536,0.000301,120]
[390893427,1760201246630,-1000.0,0.000301,60]
[390893428,1760201246659,-6000.0,0.00030127,60]
[390893429,1760201246684,-502.49,0.00030132,60]
[390893430,1760201246711,-1546.15,0.00030132,60]
[390893432,1760201246737,-227.18,0.00030136,120]
[390893434,1760201246762,-174.0,0.00030159,120]
[390893435,1760201246788,-872.14147485,0.00030169,60]
[390893436,1760201246816,-864.0,0.00030184,30]
[390893437,1760201246841,-298.08050243,0.000302,30]
[390893438,1760201246867,-200.0,0.00030229,120]
[390893439,1760201246892,-227.18,0.00030273,120]
[390893440,1760201246918,-366.59803,0.00030396,60]
[390893441,1760201246946,-227.18,0.0003041,120]
[390893442,1760201246974,-200.0,0.00030493,120]
[390893443,1760201247005,-336.51873,0.000305,120]
[390893444,1760201247032,-2603.29,0.00030512,30]
[390893445,1760201247059,-228.5124919,0.00030521,30]
[390893446,1760201247211,-379.3867937,0.00030521,30]
[390893447,1760201247238,-153.5971104,0.00030521,30]
[390893448,1760201247264,-297.8851395,0.00030521,30]
[390893449,1760201247291,-306.0,0.00030521,30]
[390893450,1760201247318,-588.4106815,0.00030521,30]
[390893451,1760201247344,-162.8757457,0.00030521,30]
[390893452,1760201247370,-189.7226975,0.00030521,30]
[390893453,1760201247395,-297.8851395,0.00030521,30]
[390893454,1760201247423,-153.0,0.00030521,30]
[390893455,1760201247449,-162.8757457,0.00030521,30]
[390893456,1760201247475,-297.8851395,0.00030521,30]
[390893457,1760201247502,-189.7226975,0.00030521,30]
[390893458,1760201247528,-153.0,0.00030521,30]
[390893459,1760201247554,-297.8851395,0.00030521,30]
[390893460,1760201247583,-162.8757457,0.00030521,30]
[390893461,1760201247610,-189.7226975,0.00030521,30]
[390893462,1760201247637,-153.0,0.00030521,30]
[390893463,1760201247663,-590.7596581,0.00030521,30]
[390893464,1760201247689,-189.7226975,0.00030521,30]
[390893465,1760201247715,-297.8851395,0.00030521,30]
[390893466,1760201247742,-588.4106815,0.00030521,30]
[390893467,1760201247768,-153.0,0.00030521,30]
[390893468,1760201247795,-588.4106815,0.00030521,30]
[390893469,1760201247821,-297.8851395,0.00030521,30]
[390893470,1760201247847,-191.4794344,0.00030521,30]
[390893471,1760201247872,-153.0,0.00030521,30]
[390893472,1760201247898,-588.4106815,0.00030521,30]
[390893473,1760201247926,-297.8851395,0.00030521,30]
[390893474,1760201247952,-588.4106815,0.00030521,30]
[390893475,1760201247979,-588.4106815,0.00030521,30]
[390893476,1760201248007,-297.8851395,0.00030521,30]
[390893477,1760201248032,-297.8851395,0.00030521,30]
[390893478,1760201248059,-588.4106815,0.00030521,30]
[390893479,1760201248085,-297.8851395,0.00030521,30]
[390893480,1760201248112,-588.4106815,0.00030521,30]
[390893481,1760201248140,-301.5627812,0.00030521,30]
[390893482,1760201248168,-588.4106815,0.00030521,30]
[390893483,1760201248194,-227.18,0.00030547,120]
[390893484,1760201248222,-227.18,0.00030684,120]
[390893485,1760201248253,-56662.60316215,0.0003079,30]
[390893486,1760201248281,-154.809388,0.00030795,30]
[390893487,1760201248308,-200.0,0.00030809,120]
[390893488,1760201248334,-227.18,0.00030821,120]
[390893489,1760201248361,-2573.57376933,0.00030875,60]
[390893490,1760201248388,-227.18,0.00030958,120]
[390893491,1760201248415,-4306.97762495,0.00031,120]
[390893492,1760201248440,-160.0,0.00031,120]
[390893493,1760201248466,-8000.0,0.00031,30]
[390893494,1760201248493,-2609.37557469,0.00031,120]
[390893495,1760201248520,-200.0,0.00031,120]
[390893496,1760201248546,-2609.37557469,0.00031,30]
[390893497,1760201248572,-154.809388,0.00031,30]
[390893498,1760201248597,-227.18,0.00031095,120]
[390893499,1760201248623,-152.0,0.000312,120]
[390893500,1760201248654,-336.51873,0.000312,120]
[390893501,1760201248681,-227.18,0.00031232,120]
[390893502,1760201248708,-1000.0,0.00031299,60]
[390893503,1760201248733,-227.18,0.00031369,120]
[390893504,1760201248759,-200.0,0.00031461,120]
[390893505,1760201248784,-200.0,0.000315,120]
[390893506,1760201248809,-500.0,0.000315,120]
[390893507,1760201248833,-709.81176,0.000315,120]
[390893508,1760201248857,-203.42146,0.000315,120]
[390893509,1760201248880,-2007.44312376,0.000315,120]
[390893510,1760201248904,-227.18,0.00031506,120]
[390893511,1760201248928,-227.18,0.00031643,120]
[390893512,1760201248953,-230.2,0.00031644,60]
[390893513,1760201248979,-150.71,0.00031644,60]
[390893514,1760201249003,-174.0,0.00031667,120]
[390893515,1760201249029,-200.0,0.00031674,120]
[390893516,1760201249055,-200.0,0.00031703,120]
[390893517,1760201249080,-152.19818,0.00031724,60]
[390893518,1760201249107,-154.809388,0.00031724,60]
[390893519,1760201249135,-3289.53,0.00031727,60]
[390893520,1760201249160,-202424.74837409,0.00031777,60]
[390893521,1760201249186,-227.18,0.0003178,120]
[390893522,1760201249212,-792.0,0.0003181,60]
[390893523,1760201249239,-2029.19,0.00031828,120]
[390893524,1760201249265,-2000.0,0.00031857,60]
[390893525,1760201249292,-2000.0,0.00031857,60]
[390893526,1760201249317,-2000.0,0.00031857,60]
[390893527,1760201249343,-2000.0,0.00031857,60]
[390893528,1760201249369,-1576.16,0.00031857,60]
[390893529,1760201249396,-200.0,0.00031899,120]
[390893530,1760201249424,-200.0,0.000319,120]
[390893531,1760201249451,-1075.15521,0.000319,120]
[390893532,1760201249478,-423.08707,0.000319,120]
[390893533,1760201249503,-243.1554,0.000319,120]
[390893534,1760201249533,-237.26646,0.000319,120]
[390893535,1760201249560,-336.51873,0.000319,120]
[390893536,1760201249587,-227.18,0.00031917,120]
[390893537,1760201249613,-300.0,0.00032,120]
[390893538,1760201249642,-411.16963,0.00032,120]
[390893539,1760201249671,-10000.0,0.00032,120]
[390893540,1760201249805,-500.0,0.00032,120]
[390893541,1760201249834,-1368982.62883934,0.00032,120]
[390893542,1760201249862,-1000.0,0.00032,120]
[390893543,1760201249890,-2609.37557469,0.00032,120]
[390893544,1760201249917,-273.73040811,0.0003201,30]
[390893545,1760201249947,-200.0,0.00032029,120]
[390893546,1760201249979,-200.0,0.00032034,120]
[390893547,1760201250008,-227.18,0.00032054,120]
[390893548,1760201250035,-1078.1272793,0.00032056,30]
[390893549,1760201250066,-200.0,0.00032153,120]
[390893550,1760201250093,-153.0,0.00032164,30]
[390893551,1760201250120,-153.0,0.00032164,30]
[390893552,1760201250148,-153.0,0.00032164,30]
[390893553,1760201250174,-227.18,0.00032191,120]
[390893554,1760201250199,-247.46081623,0.00032229,30]
[390893555,1760201250227,-227.18,0.00032328,120]
[390893556,1760201250252,-200.0,0.000324,120]
[390893557,1760201250279,-709.81176,0.000324,120]
[390893558,1760201250305,-203.42146,0.000324,120]
[390893559,1760201250332,-227.18,0.00032465,120]
[390893560,1760201250360,-200.0,0.000325,120]
[390893561,1760201250388,-500.0,0.000325,120]
[390893562,1760201250414,-247.46081623,0.00032503,30]
[390893563,1760201250439,-18000.0,0.0003254,120]
[390893564,1760201250467,-423.0871,0.000326,120]
[390893565,1760201250493,-336.51873,0.000326,120]
[390893566,1760201250520,-227.18,0.00032602,120]
[390893567,1760201250548,-200.0,0.00032682,120]
[390893568,1760201250575,-200.0,0.00032711,120]
[390893569,1760201250602,-227.18,0.00032739,120]
[390893570,1760201250630,-206.21734686,0.00032832,30]
[390893571,1760201250657,-200.0,0.00032867,120]
[390893572,1760201250684,-227.18,0.00032876,120]
[390893573,1760201250710,-1262.61,0.00032876,120]
[390893574,1760201250737,-200.0,0.00032954,120]
[390893575,1760201250763,-1129.72968917,0.00033,120]
[390893576,1760201250789,-411.16963,0.00033,120]
[390893577,1760201250817,-10000.0,0.00033,60]
[390893578,1760201250844,-10000.0,0.00033,30]
[390893580,1760201250870,-500.0,0.00033,120]
[390893581,1760201250896,-1000.0,0.00033,120]
[390893583,1760201250923,-300.0,0.00033,120]
[390893584,1760201250950,-2609.37557469,0.00033,120]
[390893585,1760201250978,-2609.37557469,0.00033,30]
[390893586,1760201251004,-227.18,0.00033013,120]
[390893587,1760201251032,-200.0,0.00033016,120]
[390893588,1760201251059,-200.0,0.00033016,120]
[390893589,1760201251086,-200.0,0.00033016,120]
[390893590,1760201251113,-227.18,0.0003315,120]
[390893591,1760201251140,-13875.67180836,0.000332,117]
[390893592,1760201251166,-13875.67180833,0.000332,117]
[390893593,1760201251193,-13875.67180833,0.000332,117]
[390893594,1760201251221,-13875.67180833,0.000332,117]
[390893595,1760201251248,-1000.0,0.00033202,30]
[390893596,1760201251274,-227.24822486,0.00033287,120]
[390893597,1760201251299,-10000.0,0.000334,120]
[390893598,1760201251323,-10000.0,0.00033425,60]
[390893599,1760201251349,-238.5,0.00033451,60]
[390893600,1760201251381,-500.0,0.000335,120]
[390893601,1760201251414,-152.0,0.000336,120]
[390893602,1760201251444,-1762.377604,0.00033701,60]
[390893603,1760201251474,-208.4,0.00033752,60]
[390893604,1760201251506,-366.59803,0.00033821,60]
[390893605,1760201251539,-200.0,0.00034,120]
[390893606,1760201251570,-10000.0,0.00034,30]
[390893607,1760201251601,-5409.0,0.00034,120]
[390893608,1760201251633,-500.0,0.00034,120]
[390893609,1760201251666,-1000.0,0.00034,120]
[390893610,1760201251698,-219.13996815,0.00034,120]
[390893611,1760201251730,-203.2621473,0.00034,60]
[390893612,1760201251762,-1262.61,0.00034246,120]
[390893613,1760201251791,-500.0,0.000345,120]
[390893614,1760201251821,-249.1,0.00034668,60]
[390893615,1760201251851,-205.7,0.0003468,30]
[390893616,1760201251879,-59639.16096069,0.000347,30]
[390893617,1760201251907,-2000.0,0.00034722,60]
[390893618,1760201251934,-2000.0,0.00034722,60]
[390893619,1760201251964,-2577.25,0.00034722,60]
[390893620,1760201251994,-1005888.02659448,0.00034767,120]
[390893621,1760201252026,-200.0,0.000348,120]
[390893622,1760201252057,-213.65611771,0.00035,30]
[390893623,1760201252088,-150.0,0.00035,69]
[390893624,1760201252119,-100000.0,0.00035,120]
[390893625,1760201252150,-2000.0,0.00035,120]
[390893626,1760201252178,-10000.0,0.00035,120]
[390893627,1760201252207,-10000.0,0.00035,60]
[390893628,1760201252239,-500.0,0.00035,120]
[390893629,1760201252271,-2611.68689503,0.00035,120]
[390893630,1760201252301,-300.0,0.00035,120]
[390893631,1760201252327,-1000.0,0.00035,120]
[390893632,1760201252354,-8000.0,0.00035,30]
[390893633,1760201252382,-12103.63556173,0.00035,120]
[390893634,1760201252410,-3316.47740665,0.00035,120]
[390893635,1760201252437,-1766.25511571,0.00035,120]
[390893636,1760201252464,-10000.0,0.00035,120]
[390893637,1760201252492,-100000.0,0.00035,30]
[390893638,1760201252520,-1000.0,0.00035,120]
[390893639,1760201252548,-238.5,0.00035044,120]
[390893640,1760201252579,-13875.67180833,0.000354,120]
[390893641,1760201252607,-500.0,0.000355,120]
[390893642,1760201252638,-1262.61,0.00035616,120]
[390893643,1760201252718,500.0,0.00030124,60]
[390893645,1760201257545,171.4892,0.00029,30]
[390893646,1760201257855,2136.41504643,0.00035616,30]
[390893647,1760201259063,171.4892,0.00029,30]
[390893651,1760201260564,171.4892,0.00029,30]
[390893652,1760201262200,171.489206,0.00029,30]
[390893653,1760201263272,154.809388,0.00024206,9]
[390893654,1760201263916,154.809388,0.00029574,30]
[390893655,1760201264926,154.809388,0.0003038,60]
[390893971,1760201369402,1305.40950424,0.00024123,2]
[390893972,1760201379619,154.809388,0.00024206,9]
[390893974,1760201426719,151.0,0.00024,120]
[390893976,1760201428119,151.0,0.000267,120]
[390893977,1760201428146,163.97118609,0.00024346,2]
[390894017,1760201432182,-1194.683348,0.00024446,2]
[390894020,1760201432194,-5.316652,0.00024446,2]
[390894021,1760201432203,-1200.0,0.00024446,2]
[390894023,1760201432213,-300.0,0.00024446,2]
[390894025,1760201432222,-1057.69,0.00024447,3]
[390894027,1760201432233,-271.23069642,0.00024447,3]
[390894030,1760201432244,-257.61930358,0.00024447,3]
[390894032,1760201432254,-264.42,0.00024447,3]
[390894033,1760201432264,-793.31,0.00024447,3]
[390894036,1760201432275,-165.07709862,0.00024456,2]
[390894037,1760201432285,-501.94083702,0.00024456,2]
[390894039,1760201432294,-220.12971741,0.00024456,2]
[390894041,1760201432304,-364.31224591,0.00024456,2]
[390894042,1760201432313,-1680.5083126,0.00024456,2]
[390894043,1760201432324,-199.50560017,0.00024456,2]
[390894044,1760201432334,-500.0,0.00024457,5]
[390894045,1760201432343,-818.77688469,0.00024457,2]
[390894053,1760201435454,777.40354,0.00027,120]
[390894102,1760201440118,-5401.49388667,0.00024457,2]
[390894103,1760201440193,-113899.9876806,0.00024457,2]
[390894122,1760201459073,-287.355,0.00024457,2]
[390894123,1760201459084,-24282.49464607,0.00024457,2]
[390894124,1760201459097,-21800.0,0.00024457,2]
[390894125,1760201485909,200.0,0.0003012,120]
[390894126,1760201490216,500.0,0.0003012,60]
[390894127,1760201490449,500.0,0.0003012,60]
[390894128,1760201490693,597.19520096,0.0003012,60]
[390894129,1760201499926,5000.0,0.00024435,2]
[390894130,1760201564804,154.809388,0.00024206,9]
[390894131,1760201617940,783.454357,0.00013699,2]
[390894132,1760201618155,783.454357,0.00020187,2]
[390894136,1760201720105,3800.0,0.00027397,120]
[390894137,1760201732202,10000.0,0.00027397,120]
[390894138,1760201784563,200.0,0.00030167,120]
[390894139,1760201866493,1305.40950424,0.00024169,2]
[390894140,1760201921864,500.0,0.00030185,60]
[390894141,1760201922098,500.0,0.00030185,60]
[390894142,1760201922321,500.0,0.00030185,60]
[390894143,1760201922651,500.0,0.00030185,60]
[390894144,1760201981260,250.0,0.0002419,2]
[390894145,1760202085543,10000.01,0.00024357,2]
[390894146,1760202085566,10000.01,0.00024357,2]
[390894147,1760202085587,10000.01,0.00024357,2]
[390894148,1760202085608,10000.01,0.00024357,2]
[390894149,1760202085628,10000.01,0.00024357,2]
[390894150,1760202085664,288728.05914471,0.00024357,2]
[390894151,1760202094465,-685.87218493,0.00023326,2]
[390894152,1760202094491,-2740.74525099,0.00023326,2]
[390894153,1760202095648,-9446.78512816,0.00024357,2]
[390894154,1760202096592,-10000.01,0.00024357,2]
[390894155,1760202096892,-10000.01,0.00024357,2]
[390894156,1760202098449,-1825.08572713,0.00024357,2]
[390894157,1760202141103,150.0,0.00018884,2]
[390894158,1760202141523,150.0,0.00020601,2]
[390894159,1760202142006,150.0,0.00022317,2]
[390894160,1760202142402,150.0,0.00024034,2]
[390894161,1760202150346,357.75432878,0.00023326,2]
[390894162,1760202152092,1431.01731513,0.00023326,2]
[390894163,1760202154279,3219.78895905,0.00023326,2]
[390894164,1760202156648,5718.34519127,0.00023326,2]
[390894165,1760202207377,150.0,0.00018881,2]
[390894166,1760202207868,150.0,0.00020597,2]
[390894167,1760202208217,150.0,0.00022313,2]
[390894168,1760202208677,150.0,0.0002403,2]
[390894169,1760202225602,154.809388,0.00024206,9]
[390894170,1760202251124,1185.79812043,0.00030186,62]
[390894171,1760202255545,10000.01,0.00024357,2]
[390894172,1760202255565,10000.01,0.00024357,2]
[390894173,1760202255586,10000.01,0.00024357,2]
[390894174,1760202255607,10000.01,0.00024357,2]
[390894175,1760202255630,10000.01,0.00024357,2]
[390894176,1760202255650,10000.01,0.00024357,2]
[390894177,1760202255670,10000.01,0.00024357,2]
[390894178,1760202255690,10000.01,0.00024357,2]
[390894179,1760202262219,5000.0,0.00024334,2]
[390894180,1760202274230,150.0,0.00018908,2]
[390894181,1760202274624,150.0,0.00020626,2]
[390894182,1760202275061,150.0,0.00022345,2]
[390894183,1760202275472,184.24,0.00024064,2]
[390894184,1760202277640,4188.78719326,0.00024334,2]
[390894185,1760202278340,176.98280674,0.00024,2]
[390894186,1760202278362,6231.74719326,0.00024,2]
[390894187,1760202278937,-160.58817146,0.00024356,2]
[390894188,1760202278974,-500.0,0.00024356,2]
[390894189,1760202279008,-500.0,0.00024356,2]
[390894190,1760202279043,-575.0,0.00024356,2]
[390894191,1760202281231,-8218.30481777,0.00024357,2]
[390894192,1760202281276,-10000.01,0.00024357,2]
[390894193,1760202281386,-10000.01,0.00024357,2]
[390894194,1760202281507,-10000.01,0.00024357,2]
[390894195,1760202281600,-10000.01,0.00024357,2]
[390894196,1760202281698,-10000.01,0.00024357,2]
[390894197,1760202281809,-10000.01,0.00024357,2]
[390894198,1760202281928,-10000.01,0.00024357,2]
[390894199,1760202282042,-10000.01,0.00024357,2]
[390894200,1760202282159,-10000.01,0.00024357,2]
[390894201,1760202282271,-10000.01,0.00024357,2]
[390894202,1760202282375,-10000.01,0.00024357,2]
[390894203,1760202282479,-10000.01,0.00024357,2]
[390894204,1760202282603,-10000.01,0.00024357,2]
[390894205,1760202282734,-10000.01,0.00024357,2]
[390894206,1760202282873,-10000.01,0.00024357,2]
[390894207,1760202282987,-10000.01,0.00024357,2]
[390894208,1760202283101,-10000.01,0.00024357,2]
[390894209,1760202283214,-10000.01,0.00024357,2]
[390894210,1760202283345,-10000.01,0.00024357,2]
[390894211,1760202283460,-10000.01,0.00024357,2]
[390894212,1760202288572,-367.73224934,0.00024,2]
[390894213,1760202294940,-457.18073433,0.0002376,2]
[390894214,1760202296395,-174.76358483,0.0002376,2]
[390894215,1760202297886,-191.10430602,0.0002376,2]
[390894216,1760202300436,-279.4489178,0.0002376,2]
[390894217,1760202305068,-301.98336284,0.0002376,2]
[390894218,1760202308349,-416.91233114,0.0002376,2]
[390894219,1760202310373,-201.86505734,0.0002376,2]
[390894220,1760202311823,-219.84910342,0.0002376,2]
[390894221,1760202328159,-154.39117937,0.0002376,2]
[390894222,1760202330787,-300.16631947,0.0002376,2]
[390894223,1760202332701,-245.87392014,0.0002376,2]
[390894224,1760202335173,-235.26310056,0.0002376,2]
[390894225,1760202336653,-154.0,0.0002376,2]
[390894226,1760202340072,-325.70539461,0.0002376,2]
[390894227,1760202341957,-366.02684716,0.0002376,2]
[390894228,1760202350229,150.0,0.00018849,2]
[390894229,1760202350635,222.57,0.00020562,2]
[390894230,1760202351164,-205.04921337,0.00022276,2]
[390894231,1760202354234,-128.80078663,0.00022276,2]
[390894232,1760202354256,-61.51825888,0.0002376,2]
[390894233,1760202357084,-267.58210597,0.0002376,2]
[390894234,1760202373078,-174.29460539,0.0002376,2]
[390894235,1760202374582,-286.72368673,0.0002376,2]
[390894236,1760202376342,-185.347184,0.0002376,2]
[390894237,1760202376364,-70.42241915,0.0002382,2]
[390894238,1760202377755,-239.16009592,0.0002382,2]
[390894239,1760202379730,-303.99478734,0.0002382,2]
[390894240,1760202382648,-322.94580909,0.0002382,2]
[390894241,1760202384183,-151.29439503,0.0002382,2]
[390894242,1760202417039,-10000.01,0.0002299,2]
[390894243,1760202417147,-10000.01,0.0002299,2]
[390894244,1760202417286,-4883.5730615,0.0002299,2]
[390894245,1760202417311,-232.863877,0.0002299,2]
[390894246,1760202417409,-1130.33002197,0.0002382,2]
[390894247,1760202417451,-504.1325774,0.00023973,2]
[390894248,1760202417481,-500.0,0.00023973,2]
[390894249,1760202417547,-5731.08480126,0.0002399,2]
[390894250,1760202417575,-10000.01,0.0002399,2]
[390894251,1760202417669,-10000.01,0.0002399,2]
[390894252,1760202417766,-10000.01,0.0002399,2]
[390894253,1760202417892,-10000.01,0.0002399,2]
[390894254,1760202417990,-10000.01,0.0002399,2]
[390894255,1760202418095,-10000.01,0.0002399,2]
[390894256,1760202418250,-10000.01,0.0002399,2]
[390894257,1760202418389,-320.59218606,0.0002399,2]
[390894258,1760202418414,-10000.01,0.0002399,2]
[390894259,1760202418513,-3192.04847877,0.0002399,2]